Cogmind - Beta 10.2 @@@ ROGUE MODE // 2021.05.25 @ 15:25:29 Player: Vagkalis Result: Destroyed by G-50 Soldier with Heavy Laser Performance ------------- Evolutions (5) 2500 Regions Visited (14) 2800 Robots Destroyed (106) 530 Value Destroyed (4283) 4283 Prototype IDs (27) 540 Alien Tech Used (0) 0 Bonus (670) 670 TOTAL SCORE: 11323 Bonus ------- Follower Combat Kills 171 Aligned with FarCom 300 Met Imprinter 300 Friendly Fire -101 Cogmind --------- Core Integrity 0/1000 Matter 89/450 Energy 150/150 System Corruption 10% Temperature Cool (39) Movement Core (1450) Ox28 Location -5/Factory Parts ------- > --- POWER (2) -------- Micro Nuclear Core > --- PROPULSION (4) --- (None) > --- UTILITY (8) ------ High-capacity Storage Unit High-capacity Storage Unit Large Matter Pod Advanced Sensor Array Advanced Signal Interpreter Targeting Computer Improved Core Shielding > --- WEAPON (3) ------- Mass Driver > --- INVENTORY (20) --- Neutrino Core Large Storage Unit Experimental Sensor Array Advanced Signal Interpreter Improved Weapon Cycler Improved Actuator Array Improved Transmission Jammer Improved Power Shielding Neutron Cannon Hypervelocity Gauss Cannon Chainsword Phasing Sabre Phasing Sabre CR-A16's Pointy Stick Self-destruct Interrupter (50) Peak State ------------ > --- POWER ------------ Micro Nuclear Core Light Angular Momentum Engine > --- PROPULSION ------- Improved Treads Spiked Medium Treads Spiked Medium Treads > --- UTILITY ---------- Advanced Heat Sink Large Storage Unit Large Storage Unit High-capacity Storage Unit Large Matter Pod Advanced Signal Interpreter Targeting Computer Improved Weapon Cycler > --- WEAPON ----------- High-powered Shock Rifle Gauss Rifle Bore Cannon > --- INVENTORY -------- Micro Nuclear Core Light Angular Momentum Engine Micro Fission Core Armored Medium Treads Fusion Compressor Advanced Heat Sink High-capacity Storage Unit Experimental Sensor Array Advanced Signal Interpreter Targeting Computer Improved Actuator Array Improved Transmission Jammer Improved Propulsion Shielding Layered Medium Armor Plating System Guard Heavy Laser Neutron Cannon Hypervelocity Gauss Rifle Mass Driver Chainsword Phasing Sabre Phasing Sabre CR-A16's Pointy Stick Self-destruct Interrupter [Rating: 65] Favorites ----------- Power Improved Deuterium Engine Engine Improved Deuterium Engine Power Core Light Nuclear Core Propulsion Improved Treads Treads Improved Treads Leg Aluminum Leg Wheel Wheel Utility Large Storage Unit Device Improved Heat Sink Storage Large Storage Unit Processor Advanced Signal Interpreter Protection Hardened Light Armor Plating Weapon Beamcaster Energy Gun Beamcaster Energy Cannon Heavy Particle Cannon Ballistic Gun Light Assault Rifle Ballistic Cannon Flak Cannon Slashing Weapon Great Axe Piercing Weapon CR-A16's Pointy Stick Build | -11 -10 -10 -9 -9 -9 -8 -8 -7 -7 -7 -7 -6 -6 -5 ------- Run | Scr Mat Min Mat Min Exi Min Mat Fac Low Low Zio Pro Fac Fac Slots Evolved 10 | . . . 2 . . . 2 2 . . . . 2 2 Power 1 | . . . . . . . . . . . . . 1 . Propulsion 2 | . . . . . . . 1 . . . . . . 1 Utility 6 | . . . 2 . . . 1 1 . . . . 1 1 Weapon 1 | . . . . . . . . 1 . . . . . . Parts Attached 146 | 6 7 . 12 1 9 2 13 8 2 4 8 12 27 35 Power 17 | 1 1 . 2 . 1 1 1 1 . 1 . 1 3 4 Engine 9 | 1 1 . 2 . 1 1 . . . 1 . . 1 1 Core 8 | . . . . . . . 1 1 . . . 1 2 3 Reactor . | . . . . . . . . . . . . . . . Propulsion 30 | 2 1 . 4 . 4 . 2 3 . 1 2 2 5 4 Treads 23 | 2 1 . 2 . 4 . 1 2 . 1 2 2 4 2 Leg 2 | . . . 2 . . . . . . . . . . . Wheel 5 | . . . . . . . 1 1 . . . . 1 2 Hover . | . . . . . . . . . . . . . . . Flight . | . . . . . . . . . . . . . . . Utility 54 | 1 3 . 3 1 1 . 5 4 1 1 1 6 10 17 Device 19 | . . . 1 . . . 2 1 . . 1 2 3 9 Storage 11 | 1 3 . 1 . . . 3 1 . . . . . 2 Processor 7 | . . . . . . . . 1 1 . . . 3 2 Hackware . | . . . . . . . . . . . . . . . Protection 17 | . . . 1 1 1 . . 1 . 1 . 4 4 4 Artifact . | . . . . . . . . . . . . . . . Weapon 45 | 2 2 . 3 . 3 1 5 . 1 1 5 3 9 10 Energy Gun 15 | . 1 . . . 2 . 4 . 1 . 1 . 3 3 Energy Cannon 1 | . . . . . . . . . . . . . 1 . Ballistic Gun 15 | 2 1 . 3 . 1 1 1 . . . . 1 3 2 Ballistic Cannon 9 | . . . . . . . . . . 1 1 . 2 5 Launcher . | . . . . . . . . . . . . . . . Special Weapon . | . . . . . . . . . . . . . . . Impact Weapon . | . . . . . . . . . . . . . . . Slashing Weapon 4 | . . . . . . . . . . . 3 1 . . Piercing Weapon 1 | . . . . . . . . . . . . 1 . . Special Melee Weapon . | . . . . . . . . . . . . . . . Unidentified Prototypes 2 | . . . . . . . . . . . 1 . . 1 Parts Lost 76 | . 2 . 6 . 4 . 6 4 . 4 . 7 19 24 Power 11 | . . . 1 . 1 . 1 . . 1 . 1 2 4 Propulsion 20 | . . . 2 . 1 . 1 2 . 2 . 1 5 6 Utility 13 | . . . . . . . . 1 . . . 2 4 6 Weapon 32 | . 2 . 3 . 2 . 4 1 . 1 . 3 8 8 Highest Loss Streak 15 | . 2 . 5 . 2 . 2 2 . 4 . 6 13 15 Average Slot Usage (%) 89 | . 96 100 95 100 97 94 94 87 92 79 85 87 86 80 Engine 6 | . 14 14 10 11 10 6 7 . . 3 7 2 2 4 Core 2 | . . . . . . . . 7 7 3 . 3 5 5 Treads 17 | . 28 28 15 22 22 22 17 14 15 14 15 21 14 9 Wheel 1 | . . . . . . . 6 5 7 3 . . 1 1 Device 6 | . . . 5 . . . 8 6 7 7 9 7 7 10 Storage 25 | . 25 28 31 33 33 33 27 23 23 23 23 23 20 21 Processor 5 | . . . . . . . . 5 7 7 7 7 12 9 Protection 5 | . . . 4 11 11 11 9 6 7 6 4 6 4 . Energy Gun 4 | . 1 14 1 . 2 11 7 6 7 . 6 2 5 4 Ballistic Gun 7 | . 26 14 19 22 17 11 9 7 7 3 . 2 3 4 Ballistic Cannon 2 | . . . . . . . . . . 3 8 2 2 2 Naked Turns . | . . . . . . . . . . . . . . . Heaviest Build 112 | 12 32 31 44 46 48 46 57 81 81 86 96 96 101 112 Greatest Support 79 | 40 40 40 46 46 46 43 43 43 43 46 74 74 73 79 Greatest Overweight (x) 9 | . . . 1 . 1 1 3 5 1 8 2 2 9 9 Average Overweight (x) 1 | . . . . . . . 1 1 1 3 1 1 2 2 Largest Inventory Capacity 26 | 6 14 14 18 18 18 18 20 24 24 24 24 24 24 26 Average Capacity 21 | 4 9 14 17 18 18 18 19 21 24 24 24 24 24 24 Most Carried 24 | 4 12 11 18 18 18 18 20 22 21 20 23 24 23 24 Average Carried 17 | 1 7 11 12 17 17 18 19 20 20 14 18 21 18 19 Final Capacity 24 | 6 14 14 18 18 18 18 20 24 24 24 24 24 24 20 Final Carried 23 | 2 11 11 17 18 18 18 20 21 20 8 23 20 16 15 Class Distribution -------------------- 54% | Hauler-Mutant 27% | Mutant 11% | Scavenger-Mutant Dominant Class ---------------- Mutant | -10/Materials Mutant | -10/Mines Scavenger-Mutant | -9/Materials Mutant | -9/Mines Mutant | -9/Exiles Mutant | -8/Mines Hauler-Mutant | -8/Materials Hauler-Mutant | -7/Factory Hauler-Mutant | -7/Lower Caves Hauler-Mutant | -7/Lower Caves Hauler-Mutant | -7/Zion Hauler-Mutant | -6/Proximity Caves Scavenger-Mutant | -6/Factory Hauler-Mutant | -5/Factory Resources | -11 -10 -10 -9 -9 -9 -8 -8 -7 -7 -7 -7 -6 -6 -5 ----------- Run | Scr Mat Min Mat Min Exi Min Mat Fac Low Low Zio Pro Fac Fac Matter Collected 3485 | 154 322 . 431 . 76 81 338 199 40 148 152 175 546 823 Remotely . | . . . . . . . . . . . . . . . Salvage Created 4470 | . 393 . 745 . . 82 469 283 . 99 . 284 934 1181 Parts 254 | . 35 . 36 . . 8 23 12 . 10 . 20 63 47 Haulers Intercepted 1 | . 1 . . . . . . . . . . . . . Recyclers Shooed 5 | . 1 . 2 . . . . . . . . . 2 . Parts Field Recycled . | . . . . . . . . . . . . . . . Retrieved Matter . | . . . . . . . . . . . . . . . Parts Self-Destructed 33 | . . . . . . . . . . 10 3 20 . . Prevented . | . . . . . . . . . . . . . . . Kills | -11 -10 -10 -9 -9 -9 -8 -8 -7 -7 -7 -7 -6 -6 -5 ------- Run | Scr Mat Min Mat Min Exi Min Mat Fac Low Low Zio Pro Fac Fac Combat Hostiles Destroyed 93 | . 10 . 15 . . 4 12 6 . 5 . 8 14 19 Melee 1 | . . . . . . . . . . . . 1 . . Guns 71 | . 10 . 15 . . 4 12 6 . . . 7 8 9 Cannons 20 | . . . . . . . . . . 5 . . 6 9 Classes Destroyed 13 | . 6 . 1 . . 1 . 2 . 1 . 1 . 1 Worker 6 | . 1 . . . . . . . . . . . 5 . Builder 2 | . 1 . . . . . . . . . . . 1 . Hauler 1 | . 1 . . . . . . . . . . . . . Recycler 3 | . 1 . 1 . . . . . . . . . 1 . Watcher 1 | . . . . . . . . . . . . . . 1 Swarmer 19 | . 6 . . . . 3 . . . 4 . 6 . . Grunt 42 | . 4 . 12 . . . 9 3 . . . . 3 11 Brawler 2 | . . . . . . . . 1 . . . 1 . . Duelist 2 | . . . . . . . . 1 . . . . . 1 Sentry 10 | . . . 3 . . . 3 1 . . . . 1 2 Hunter 8 | . . . . . . 1 . . . . . . 7 . Programmer 9 | . . . . . . . . . . 1 . . 3 5 Behemoth 1 | . . . . . . . . . . . . 1 . . Best Kill Streak 6 | . 4 . 5 . . 3 6 2 . 5 . 3 5 4 Combat Bots Only 6 | . 3 . 5 . . 3 6 2 . 5 . 3 4 4 Max Kills in Single Turn 2 | . 2 . 1 . . 1 1 1 . 1 . 1 2 1 Gunslinging 1 | . 1 . . . . . . . . . . . . . Exploded . | . . . . . . . . . . . . . . . Melee 1 | . . . . . . . . . . . . 1 . . Uniques/NPCs Destroyed 1 | . . . . . 1 . . . . . . . . . 8R-AWN (-9/Exiles) Combat | -11 -10 -10 -9 -9 -9 -8 -8 -7 -7 -7 -7 -6 -6 -5 -------- Run | Scr Mat Min Mat Min Exi Min Mat Fac Low Low Zio Pro Fac Fac Damage Taken 12983 | . 510 226 786 . 779 87 871 654 . 502 . 872 3412 4284 Core 2379 | . 93 96 121 . 201 . 113 43 . 97 . 161 452 1002 Absorbed by Shields . | . . . . . . . . . . . . . . . Core Remaining (%) 54 | 100 . 24 . . . 19 79 . . . . 57 46 . Volleys Fired 425 | . 49 . 64 . 27 7 51 23 . 16 6 15 82 85 Largest 3 | . 2 . 2 . 2 2 2 2 . 2 1 3 2 3 Hottest 163 | . 60 . 60 . 60 79 90 90 . 90 57 152 132 163 Shots Fired 786 | . 96 . 112 . 54 14 75 46 . 20 7 39 128 195 Gun 649 | . 96 . 112 . 54 14 75 46 . 5 1 24 95 127 Cannon 137 | . . . . . . . . . . 15 6 15 33 68 Launcher . | . . . . . . . . . . . . . . . Special . | . . . . . . . . . . . . . . . Kinetic 596 | . 88 . 111 . 50 7 51 23 . 19 6 24 78 139 Thermal 156 | . 8 . 1 . 4 7 24 23 . 1 1 15 50 22 Explosive . | . . . . . . . . . . . . . . . Electromagnetic 34 | . . . . . . . . . . . . . . 34 Robot Hit Streak 23 | . 12 . 14 . 11 5 18 9 . 5 . 7 12 23 Robot Miss Streak 14 | . 7 . 2 . 2 2 3 3 . 14 . 5 6 4 Penetration Max 1 | . . . . . . . . . . . . . 1 1 Secondary Targets 5 | . 2 . . . . . . . . . . . 3 . Max Gunslinging Chain 1 | . 1 . . . . . . . . . . . 1 . Shots Hit Robots 557 | . 57 . 95 . 44 9 66 34 . 14 . 25 83 130 Core Hits 258 | . 27 . 37 . 9 5 31 17 . 10 . 21 42 59 Critical Hits 38 | . 1 . 1 . . . . . . . . . 12 24 Critical Kills 15 | . . . 1 . . . . . . . . . 5 9 Critical Parts Destroyed 22 | . 1 . . . . . . . . . . . 7 14 Melee Attacks 38 | . . . . . . . . . . . 25 13 . . Impact . | . . . . . . . . . . . . . . . Slashing 30 | . . . . . . . . . . . 25 5 . . Piercing 8 | . . . . . . . . . . . . 8 . . Sneak Attacks . | . . . . . . . . . . . . . . . Combat Hostiles . | . . . . . . . . . . . . . . . Follow-up Attacks . | . . . . . . . . . . . . . . . Damage Inflicted 9692 | . 721 . 982 . 482 117 1116 587 . 207 . 667 2082 2731 Guns 7391 | . 640 . 982 . 482 117 1111 587 . 46 . 279 1531 1616 Cannons 1858 | . . . . . . . . . . 161 . 226 551 920 Explosions 244 | . 81 . . . . . . . . . . . . 163 Melee 162 | . . . . . . . . . . . . 162 . . Ramming 37 | . . . . . . . 5 . . . . . . 32 Kinetic 6678 | . 574 . 972 . 460 59 912 361 . 207 . 315 1255 1563 Thermal 2094 | . 66 . 10 . 22 58 199 226 . . . 190 827 496 Explosive 81 | . 81 . . . . . . . . . . . . . Electromagnetic 640 | . . . . . . . . . . . . . . 640 Impact . | . . . . . . . . . . . . . . . Slashing . | . . . . . . . . . . . . . . . Piercing 162 | . . . . . . . . . . . . 162 . . Highest Corruption 10 | . . . 1 1 1 1 . 9 9 10 10 . 3 10 Average Corruption 4 | . . . 1 1 1 1 . 8 9 9 10 . 2 4 Corruption Purged . | . . . . . . . . . . . . . . . Effects 122 | . . . . 6 7 2 . 15 10 43 6 . 5 28 Message Errors 32 | . . . . 3 3 1 . 3 1 18 . . . 3 Matter Fused 21 | . . . . . . . . 6 6 3 2 . 1 3 Heat Flow Errors 5 | . . . . . . . . . . 5 . . . . Energy Discharges 13 | . . . . 1 2 . . 2 1 3 1 . . 3 Parts Rejected 1 | . . . . . . . . . . . . . . 1 Data Loss (minor) 20 | . . . . 2 2 . . 2 2 6 1 . 1 4 Data Loss (major) 3 | . . . . . . . . . . 3 . . . . Misfires 2 | . . . . . . . . . . 1 1 . . . Misdirections 4 | . . . . . . . . . . 3 1 . . . Targeting Errors 16 | . . . . . . 1 . 2 . 1 . . 3 9 Weapon Failures 5 | . . . . . . . . . . . . . . 5 Overload Shots . | . . . . . . . . . . . . . . . Overflow Damage 37 | . . . . . . . . . . . . . . 37 Projectiles 34 | . . . . . . . . . . . . . . 34 Explosions 3 | . . . . . . . . . . . . . . 3 Melee . | . . . . . . . . . . . . . . . Knockbacks 28 | . . . . . . . . . . 11 . 3 4 10 Impact . | . . . . . . . . . . . . . . . Kinetic 27 | . . . . . . . . . . 10 . 3 4 10 Secondary 1 | . . . . . . . . . . 1 . . . . Self-Inflicted Damage 63 | . . . . . . . . . . . . . . 63 Shots 2 | . . . . . . . . . . . . . . 2 Rammed 2 | . . . . . . . 1 . . . . . . 1 Targets Rammed 2 | . . . . . . . 1 . . . . . . 1 Kicked . | . . . . . . . . . . . . . . . Crushed . | . . . . . . . . . . . . . . . Highest Temperature 692 | . 40 . 10 . 60 48 4 32 . 238 4 168 377 692 Average Temperature 106 | . 13 . 2 . 11 17 3 8 . 103 2 61 117 178 Received Heat Transfer 2460 | . 90 . 333 . . . 414 135 . . . 84 246 1158 Effects 27 | . . . . . . . . . . . . . 1 26 Shutdowns 7 | . . . . . . . . . . . . . 1 6 Energy Bleed 2 | . . . . . . . . . . . . . . 2 Interference 5 | . . . . . . . . . . . . . . 5 Matter Decay 1 | . . . . . . . . . . . . . . 1 Short Circuit 2 | . . . . . . . . . . . . . . 2 Damage (major) 8 | . . . . . . . . . . . . . . 8 Damage (core) 2 | . . . . . . . . . . . . . . 2 Siege Activations . | . . . . . . . . . . . . . . . Robots Corrupted 1 | . . . . . . . . . . . . . . 1 Combat Hostiles 1 | . . . . . . . . . . . . . . 1 Parts Fried 4 | . . . . . . . . . . . . . . 4 Impact Corruptions . | . . . . . . . . . . . . . . . Robots Melted . | . . . . . . . . . . . . . . . Combat Hostiles . | . . . . . . . . . . . . . . . Parts Melted 4 | . . . . . . . . 1 . . . . 1 2 Heat Transferred 4284 | . 150 . 25 . 12 148 518 518 . . . 333 1480 1100 Parts Sabotaged . | . . . . . . . . . . . . . . . Parts Stolen 5 | . . . . . . . . . . 5 . . . . Parts Stripped . | . . . . . . . . . . . . . . . Power Chain Reactions . | . . . . . . . . . . . . . . . Missiles Intercepted . | . . . . . . . . . . . . . . . Alert | -11 -10 -10 -9 -9 -9 -8 -8 -7 -7 -7 -7 -6 -6 -5 ------- Run | Scr Mat Min Mat Min Exi Min Mat Fac Low Low Zio Pro Fac Fac Peak Influence 364 | . 194 75 232 80 . 130 206 297 . . . . 189 364 Initial 93 | . . 75 29 80 . . . 93 . . . . . 25 Average 98 | . 100 75 119 48 . 16 59 168 . . . . 65 172 Maximum Alert Level 1 | . . . 1 . . . 1 1 . . . . . 1 Low Security (%) 83 | 100 100 100 92 100 . 100 89 64 . . . . 100 44 Level 1 16 | . . . 7 . . . 10 35 . . . . . 55 Level 2 . | . . . . . . . . . . . . . . . Level 3 . | . . . . . . . . . . . . . . . Level 4 . | . . . . . . . . . . . . . . . Level 5 . | . . . . . . . . . . . . . . . High Security . | . . . . . . . . . . . . . . . Max Security . | . . . . . . . . . . . . . . . Squads Dispatched 21 | . 2 . 3 . . . 3 1 . . . . 4 8 Investigation 2 | . . . . . . . 1 . . . . . . 1 Extermination 5 | . . . . . . . . . . . . . 2 3 Reinforcement 11 | . 2 . 3 . . . 2 1 . . . . 2 1 Assault . | . . . . . . . . . . . . . . . Garrison 3 | . . . . . . . . . . . . . . 3 Intercept . | . . . . . . . . . . . . . . . Construction Impeded 2 | . . . . . . . 1 . . . . . . 1 Haulers Reinforced 1 | . . . . . . . . . . . . . 1 . Stealth | -11 -10 -10 -9 -9 -9 -8 -8 -7 -7 -7 -7 -6 -6 -5 --------- Run | Scr Mat Min Mat Min Exi Min Mat Fac Low Low Zio Pro Fac Fac Distress Signals 2 | . . . . . . . . . . . . . 1 1 Communications Jammed . | . . . . . . . . . . . . . . . Distress Signals . | . . . . . . . . . . . . . . . Times Spotted 207 | . 26 20 29 . 8 6 16 15 . 10 . 13 20 44 Peak Tracking Total 20 | . 4 20 5 . 7 3 5 3 . 5 . 4 4 9 Tactical Retreats 8 | . 1 . . . 1 1 . 2 . . . . . 3 Traps | -11 -10 -10 -9 -9 -9 -8 -8 -7 -7 -7 -7 -6 -6 -5 ------- Run | Scr Mat Min Mat Min Exi Min Mat Fac Low Low Zio Pro Fac Fac Traps Triggered 4 | . . . 1 . . . 1 2 . . . . . . Indirectly . | . . . . . . . . . . . . . . . Trap Hack Attempts . | . . . . . . . . . . . . . . . Triggered . | . . . . . . . . . . . . . . . Disarmed . | . . . . . . . . . . . . . . . Reprogrammed . | . . . . . . . . . . . . . . . Reused . | . . . . . . . . . . . . . . . Traps Extracted . | . . . . . . . . . . . . . . . Installed . | . . . . . . . . . . . . . . . Triggered 1 | . . . . . . . . . . . . . . 1 Machines | -11 -10 -10 -9 -9 -9 -8 -8 -7 -7 -7 -7 -6 -6 -5 ---------- Run | Scr Mat Min Mat Min Exi Min Mat Fac Low Low Zio Pro Fac Fac Machines Disabled 14 | . 2 . . . 4 . . . . . . . 2 6 Max in Single Turn 2 | . 1 . . . 1 . . . . . . . 1 2 Machines Sabotaged . | . . . . . . . . . . . . . . . Garrisons Compromised . | . . . . . . . . . . . . . . . Overloaded Fab Kills . | . . . . . . . . . . . . . . . Fab Network Shutdowns . | . . . . . . . . . . . . . . . Hacking | -11 -10 -10 -9 -9 -9 -8 -8 -7 -7 -7 -7 -6 -6 -5 --------- Run | Scr Mat Min Mat Min Exi Min Mat Fac Low Low Zio Pro Fac Fac Machines Accessed 15 | . 2 . 1 . 1 . 4 1 . . . . 2 4 Terminals 9 | . 2 . 1 . . . 4 . . . . . 1 1 Fabricators 3 | . . . . . . . . . . . . . 1 2 Repair Stations 2 | . . . . . . . . 1 . . . . . 1 Recycling Units . | . . . . . . . . . . . . . . . Scanalyzers . | . . . . . . . . . . . . . . . Garrison Access . | . . . . . . . . . . . . . . . Total Hacks 28 | . 4 . 1 . 1 . 8 2 . . . . 4 8 Successful 16 | . 2 . 1 . 1 . 4 2 . . . . 3 3 Failed 12 | . 2 . . . . . 4 . . . . . 1 5 Catastrophic 4 | . . . . . . . . . . . . . 1 3 Database Lockouts . | . . . . . . . . . . . . . . . Manual 5 | . . . 2 . 1 . . . . . 2 . . . Terminals 16 | . 4 . 1 . . . 8 . . . . . 1 2 Fabricators 8 | . . . . . . . . . . . . . 3 5 Repair Stations 3 | . . . . . . . . 2 . . . . . 1 Recycling Units . | . . . . . . . . . . . . . . . Scanalyzers . | . . . . . . . . . . . . . . . Garrison Access . | . . . . . . . . . . . . . . . Terminal Hacks 9 | . 2 . 1 . 1 . 4 . . . . . . 1 Robot Analysis 1 | . . . . . . . 1 . . . . . . . Prototype ID Bank 1 | . . . . . . . 1 . . . . . . . Branch Access Points 2 | . 1 . 1 . . . . . . . . . . . Emergency Access Points 2 | . 1 . . . . . 1 . . . . . . . Patrol Status 1 | . . . . . . . 1 . . . . . . . Zone Layout 1 | . . . . . . . . . . . . . . 1 EX-Prototype ID Bank 1 | . . . . . 1 . . . . . . . . . Fabricator Hacks 5 | . . . . . . . . . . . . . 3 2 Network Status 3 | . . . . . . . . . . . . . 2 1 Build 2 | . . . . . . . . . . . . . 1 1 Repair Station Hacks 2 | . . . . . . . . 2 . . . . . . Scan Component 1 | . . . . . . . . 1 . . . . . . Repair 1 | . . . . . . . . 1 . . . . . . Recycling Unit Hacks . | . . . . . . . . . . . . . . . Scanalyzer . | . . . . . . . . . . . . . . . Garrison Access Hacks . | . . . . . . . . . . . . . . . Unauthorized Hacks . | . . . . . . . . . . . . . . . Terminals . | . . . . . . . . . . . . . . . Fabricators . | . . . . . . . . . . . . . . . Repair Stations . | . . . . . . . . . . . . . . . Recycling Units . | . . . . . . . . . . . . . . . Scanalyzers . | . . . . . . . . . . . . . . . Garrison Access . | . . . . . . . . . . . . . . . Data Cores Recovered . | . . . . . . . . . . . . . . . Used . | . . . . . . . . . . . . . . . Hacking Detections 9 | . 2 . . . . . 2 1 . . . . 1 3 Full Trace Events 1 | . . . . . . . . . . . . . . 1 Feedback Events . | . . . . . . . . . . . . . . . Feedback Blocked . | . . . . . . . . . . . . . . . Robot Schematics Acquired . | . . . . . . . . . . . . . . . Robots Built 1 | . . . . . . . . . . . . . 1 . Matter 285 | . . . . . . . . . . . . . 285 . Time 152 | . . . . . . . . . . . . . 152 . Total Robot Build Rating 5 | . . . . . . . . . . . . . 5 . Part Schematics Acquired . | . . . . . . . . . . . . . . . Parts Built 2 | . . . . . . . . . . . . . . 2 Matter 212 | . . . . . . . . . . . . . . 212 Time 106 | . . . . . . . . . . . . . . 106 Total Part Build Rating 12 | . . . . . . . . . . . . . . 12 Parts Repaired 1 | . . . . . . . . 1 . . . . . . Time 16 | . . . . . . . . 16 . . . . . . Parts Recycled . | . . . . . . . . . . . . . . . Recycled Matter . | . . . . . . . . . . . . . . . Retrieved Matter . | . . . . . . . . . . . . . . . Retrieved Components . | . . . . . . . . . . . . . . . Parts Scanalyzed . | . . . . . . . . . . . . . . . Part Schematics Acquired . | . . . . . . . . . . . . . . . Parts Damaged . | . . . . . . . . . . . . . . . Bothacking | -11 -10 -10 -9 -9 -9 -8 -8 -7 -7 -7 -7 -6 -6 -5 ------------ Run | Scr Mat Min Mat Min Exi Min Mat Fac Low Low Zio Pro Fac Fac Used RIF Installer . | . . . . . . . . . . . . . . . Robots Hacked . | . . . . . . . . . . . . . . . Non-combat . | . . . . . . . . . . . . . . . Combat . | . . . . . . . . . . . . . . . Robot Hacks Applied . | . . . . . . . . . . . . . . . Relay Couplers Released . | . . . . . . . . . . . . . . . Robots Rewired . | . . . . . . . . . . . . . . . Allies Hacked . | . . . . . . . . . . . . . . . Hacks Repelled . | . . . . . . . . . . . . . . . Allies | -11 -10 -10 -9 -9 -9 -8 -8 -7 -7 -7 -7 -6 -6 -5 -------- Run | Scr Mat Min Mat Min Exi Min Mat Fac Low Low Zio Pro Fac Fac Total Allies 9 | . . . . 3 . . . . . . 5 . 1 . Largest Group 5 | . . . . 3 3 . . . . . 5 5 1 . Highest-Rated Group 99 | . . . . 40 40 . . . . . 99 99 24 . Highest-Rated Ally 25 | . . . . 16 16 . . . . . 25 25 24 . Total Orders 7 | . . . . . 4 . . . . . . . 3 . STAY 3 | . . . . . 2 . . . . . . . 1 . FOLLOW 3 | . . . . . 2 . . . . . . . 1 . COLLECT 1 | . . . . . . . . . . . . . 1 . Ally Attacks 123 | . . . . . 83 . . . . . . 40 . . Total Damage 1614 | . . . . . 929 . . . . . . 685 . . Kills 12 | . . . . . 7 . . . . . . 5 . . Allies Corrupted . | . . . . . . . . . . . . . . . Allies Melted . | . . . . . . . . . . . . . . . Turrets Deployed 2 | . . . . . 2 . . . . . . . . . Intel | -11 -10 -10 -9 -9 -9 -8 -8 -7 -7 -7 -7 -6 -6 -5 ------- Run | Scr Mat Min Mat Min Exi Min Mat Fac Low Low Zio Pro Fac Fac Robot Analysis Total 1 | . . . . . . . 1 . . . . . . . Derelict Logs Recovered 7 | . . . . 2 . . . . . 2 2 1 . . Drone Launches . | . . . . . . . . . . . . . . . Drone Recoveries . | . . . . . . . . . . . . . . . Exploration | -11 -10 -10 -9 -9 -9 -8 -8 -7 -7 -7 -7 -6 -6 -5 ------------- Run | Scr Mat Min Mat Min Exi Min Mat Fac Low Low Zio Pro Fac Fac Turns Passed 14288 | 65 754 18 746 662 1413 724 644 727 323 1069 3253 1303 1258 1329 Spaces Moved 6997 | 38 343 12 296 400 757 406 270 325 178 617 1727 654 502 472 Core 7 | 7 . . . . . . . . . . . . . . Treads 6392 | 31 343 12 224 400 757 406 224 310 178 334 1727 654 424 368 Legs 72 | . . . 72 . . . . . . . . . . . Wheels 526 | . . . . . . . 46 15 . 283 . . 78 104 Hover . | . . . . . . . . . . . . . . . Flight . | . . . . . . . . . . . . . . . Fastest Speed 50 | 50 160 160 150 160 160 160 130 150 180 150 180 180 170 120 Average Speed 176 | 139 160 160 157 160 173 170 171 179 180 166 182 182 190 188 Slowest Speed 280 | 160 160 160 160 160 180 180 180 200 180 180 200 200 280 280 Overloaded Moves . | . . . . . . . . . . . . . . . Propulsion Burnouts . | . . . . . . . . . . . . . . . Robots Hopped 2 | . . . . . 2 . . . . . . . . . Cave-ins Triggered . | . . . . . . . . . . . . . . . Exploration Rate (%) 42 | 3 50 6 24 92 51 65 26 10 42 82 89 69 15 11 Regions Visited 14 Branch Regions 8 Pre-discovered Areas 4 | . . . . 1 . . . . . 1 2 . . . Known Exits Taken 7 | . 1 . 1 . . . . . 1 1 1 1 1 . Unknown Exits Taken 7 | 1 . 1 . 1 1 1 1 1 . . . . . . Scrap Searched 8 | . . . . 1 . 1 . . . 1 3 2 . . Spaces Dug 5 | . . . . . . . . . . . . 5 . . Terrain Destroyed 44 | . 9 . . . . . . . . . . 8 3 24 Melee 5 | . . . . . . . . . . . . 5 . . Projectile 21 | . . . . . . . . . . . . 3 3 15 AOE 18 | . 9 . . . . . . . . . . . . 9 Terrain Rammed . | . . . . . . . . . . . . . . . Walls Destroyed . | . . . . . . . . . . . . . . . Machines Disabled . | . . . . . . . . . . . . . . . Actions | -11 -10 -10 -9 -9 -9 -8 -8 -7 -7 -7 -7 -6 -6 -5 --------- Run | Scr Mat Min Mat Min Exi Min Mat Fac Low Low Zio Pro Fac Fac Total 8217 | 50 462 11 480 423 806 422 376 423 181 642 1789 704 679 769 Wait 425 | . 44 . 85 18 . 6 29 58 . 5 1 . 40 139 Move 6980 | 37 342 11 295 399 752 405 270 324 177 616 1726 653 501 472 Hop 2 | . . . . . 2 . . . . . . . . . Pick Up 145 | 7 16 . 19 3 7 1 8 7 1 1 18 7 23 27 Fast Attach 10 | 1 . . . . . 1 4 2 . . . . . 2 Attach 93 | 5 3 . 8 . 5 . 5 3 2 4 6 6 23 23 Detach 5 | . . . . . . . . . . . 4 . . 1 Swap 43 | . 4 . 4 1 4 1 4 3 . . 2 6 4 10 Drop 50 | . 4 . 5 2 9 1 5 3 1 . 1 4 6 9 Fire 425 | . 49 . 64 . 27 7 51 23 . 16 6 15 82 85 Melee 38 | . . . . . . . . . . . 25 13 . . Ram 1 | . . . . . . . . . . . . . . 1 Kick . | . . . . . . . . . . . . . . . Crush . | . . . . . . . . . . . . . . . Escape Stasis . | . . . . . . . . . . . . . . . Rewire . | . . . . . . . . . . . . . . . Trap . | . . . . . . . . . . . . . . . Miscellaneous . | . . . . . . . . . . . . . . . Route ------- -11/Scrapyard -10/Materials (discovered 3 exits: *Mat / *Min x2) -10/Mines -9/Materials -9/Mines (discovered 3 exits: *Mat x2 / *Exi) -9/Exiles -8/Mines -8/Materials -7/Factory -7/Lower Caves -7/Lower Caves -7/Zion -6/Proximity Caves -6/Factory -5/Factory (discovered 2 exits: [*Fac] / Ext) History --------- Turn | Location | Event 2 | -11/Scrapyard | Met Revision 17 5 | -11/Scrapyard | Discovered new exit (range 16) 66 | -11/Scrapyard | Entered Materials 306 | -10/Materials | Build established: Mutant 501 | -10/Materials | Identified exit to Mines 663 | -10/Materials | Discovered new exit (range 14) 820 | -10/Materials | Entered Mines 821 | -10/Mines | Assembled infested the area 825 | -10/Mines | Discovered new exit (range 9) 826 | -10/Mines | Assisted by a Guerilla fighting off Assembled 827 | -10/Mines | Core integrity fell below 50% 838 | -10/Mines | Entered Materials 838 | -9/Materials | Evolved 2 slots: Utility x2 902 | -9/Materials | Identified exit to Mines 1050 | -9/Materials | Lost 5 parts (1p2n2w) 1584 | -9/Materials | Entered Mines 1679 | -9/Mines | Learned Materials garrison access intel 1785 | -9/Mines | A weapon hastily lodged in a ceiling crevice suddenly fell to the ground 1809 | -9/Mines | Discovered new exit (range 9) 1820 | -9/Mines | Assisted by bots powering up and referring to "LRC-V3" 1957 | -9/Mines | Learned location of Recycling (-7) 2149 | -9/Mines | Discovered new exit (range 8) 2177 | -9/Mines | Found a damaged Exp. Sensor Array with a note attached 2182 | -9/Mines | Found Prototype Device 2232 | -9/Mines | Deemed a non-threat by the Exiles lab entrance 2232 | -9/Mines | Discovered new exit (range 5) 2246 | -9/Mines | Entered Exiles 2246 | -9/Exiles | Accompanied by 3 allies 2288 | -9/Exiles | Met 8R-AWN 2317 | -9/Exiles | Met EX-HEX 2363 | -9/Exiles | Met EX-BIN 2512 | -9/Exiles | Aligned with FarCom system 2514 | -9/Exiles | Given EX-Vault access code 2557 | -9/Exiles | Opened EX-Vault 2572 | -9/Exiles | Found Deploy-a-Sentry 2575 | -9/Exiles | Found Deploy-a-Sentry 2578 | -9/Exiles | Found Deploy-a-Sentry 2615 | -9/Exiles | Warned to stay clear of 0b10 Research branches 2737 | -9/Exiles | DAS Turret deployed 2743 | -9/Exiles | DAS Turret deployed 2894 | -9/Exiles | Found Superbattery 3074 | -9/Exiles | Attacked by the Exiles 3105 | -9/Exiles | Core integrity fell below 50% 3149 | -9/Exiles | Allies destroyed 8R-AWN 3239 | -9/Exiles | Core integrity fell below 20% 3471 | -9/Exiles | Found Army-in-a-Box 3635 | -9/Exiles | Discovered new exit (range 14) 3659 | -9/Exiles | Stole three prototypes: Superbattery, Deploy-a-Sentry, Army-in-a-Box 3659 | -9/Exiles | Entered Mines 4366 | -8/Mines | Discovered new exit (range 8) 4383 | -8/Mines | Entered Materials 4383 | -8/Materials | Evolved 2 slots: Propulsion x1, Utility x1 4795 | -8/Materials | Build established: Hauler-Mutant 5002 | -8/Materials | Discovered new exit (range 14) 5027 | -8/Materials | Entered Factory 5027 | -7/Factory | Evolved 2 slots: Utility x1, Weapon x1 5063 | -7/Factory | Repaired Hrd. Light Armor Plating 5725 | -7/Factory | Discovered new exit (range 14) 5754 | -7/Factory | Entered Lower Caves 6034 | -7/Lower Caves | Discovered new exit (range 10) 6075 | -7/Lower Caves | Identified exit to Lower Caves 6077 | -7/Lower Caves | Entered another Lower Caves area 6081 | -7/Lower Caves | Particle Gun stolen by Master Thief 6246 | -7/Lower Caves | Learned location of Extension (-5) 6550 | -7/Lower Caves | System corruption reached 10% 6590 | -7/Lower Caves | Lost 4 parts (1p2n1w) 6676 | -7/Lower Caves | Spotted I0-JEY(f) 6676 | -7/Lower Caves | Spotted MU-F15(f) 6677 | -7/Lower Caves | Encountered a Master Thief 6677 | -7/Lower Caves | Encountered a Master Thief 6677 | -7/Lower Caves | Spotted S3-B0R(f) 6677 | -7/Lower Caves | Spotted Z4-6K7(f) 6678 | -7/Lower Caves | Encountered a Master Thief 6678 | -7/Lower Caves | Encountered a Master Thief 6680 | -7/Lower Caves | Deploy-a-Sentry stolen by Master Thief 6680 | -7/Lower Caves | Superbattery stolen by Master Thief 6681 | -7/Lower Caves | Army-in-a-Box stolen by Master Thief 6695 | -7/Lower Caves | Bore Cannon stolen by Master Thief 7119 | -7/Lower Caves | Discovered new exit (range 14) 7141 | -7/Lower Caves | Identified exit to Zion 7146 | -7/Lower Caves | Entered Zion 7293 | -7/Zion | System corruption cleaned by Quarantine Array 7483 | -7/Zion | Learned Factory stockpile data 7557 | -7/Zion | Gained Derelict followers 7718 | -7/Zion | Found CR-A16's Pointy Stick 7917 | -7/Zion | Received a hallucinogenic algorithm 8061 | -7/Zion | Learned location of Warlord (-5) 8354 | -7/Zion | Learned Factory security intel 9384 | -7/Zion | Identified Exp. Sensor Array 10106 | -7/Zion | Discovered new exit (range 15) 10183 | -7/Zion | Given the Hacking Drone Bay 10398 | -7/Zion | Identified exit to Proximity Caves 10399 | -7/Zion | Entered Proximity Caves 10399 | -6/Proximity Caves | Accompanied by 5 allies 10401 | -6/Proximity Caves | Attracted the attention of an 0b10 checkpoint 10457 | -6/Proximity Caves | Learned Factory stockpile data 10898 | -6/Proximity Caves | Spotted B-75 Beast 10930 | -6/Proximity Caves | Destroyed B-75 Beast 10958 | -6/Proximity Caves | Lost 6 parts (1p2u3w) 11675 | -6/Proximity Caves | Discovered new exit (range 12) 11700 | -6/Proximity Caves | Identified exit to Factory 11702 | -6/Proximity Caves | Entered Factory 11702 | -6/Factory | Evolved 2 slots: Power x1, Utility x1 12087 | -6/Factory | Fabricated A-15 Conveyor (x1) 12428 | -6/Factory | Lost 13 parts (2p4n2u5w) 12621 | -6/Factory | Core integrity fell below 50% 12654 | -6/Factory | Lost 3 parts (1u2w) 12790 | -6/Factory | Build established: Scavenger-Mutant 12916 | -6/Factory | Discovered new exit (range 15) 12944 | -6/Factory | Identified exit to Factory 12960 | -6/Factory | Entered another Factory area 12960 | -5/Factory | Evolved 2 slots: Propulsion x1, Utility x1 12961 | -5/Factory | Identified exit to Extension 13737 | -5/Factory | Lost 6 parts (1p2n1u2w) 13957 | -5/Factory | Fabricated Hyp. Gauss Cannon (x2) 13988 | -5/Factory | Build established: Hauler-Mutant 14031 | -5/Factory | Core integrity fell below 50% 14034 | -5/Factory | Garrison activated, responded to threat 14145 | -5/Factory | Discovered new exit (range 7) 14222 | -5/Factory | Core integrity fell below 20% 14226 | -5/Factory | System corruption reached 10% 14289 | -5/Factory | Destroyed by G-50 Soldier with Heavy Laser Last Messages --------------- Slug penetrates Terminal. U-05 Engineer lays Concrete. Penetrated by Slug. Neutrino Core destroyed. Penetrated by Slug. U-05 Engineer lays Concrete. K-01 Serf collects debris. HV Slug penetrates H-66 Slayer. HV Slug penetrates Wall. H-66 Slayer knocked back. U-05 Engineer lays Concrete. Lrg. Storage Unit destroyed. U-05 Engineer builds a Wall. Penetrated by Slug. Adv. Heat Sink destroyed. K-01 Serf collects debris. HV Slug penetrates U-05 Engineer. HV Slug penetrates Wall. Slug penetrates H-66 Slayer. Hyp. Gauss Rifle destroyed. Map ----- +----------------------------------------------------+ | ?????????????????????????# """ + """ | | ?????????????????????????# """ # """ | | ?????????????????????????# """ """ #?? | | ?????????????????????????# "F" #??? | | ?????????????????????????# ^ "! ##### | | ?????????????????????##### """ | | ?????????????????????+ """ | | ?????????????????????##### ######## | | ?????????????????????????# #??????# | | ?????????????????????????# #??????# | | ???????????????????????###+######?#+## """ | | ??????????????? ??????# #????# """ | | ??????????????? ??????# "" #????# """ | | ? #????# ### """ #????# ##+## | | ? #????# k ? # R" #????# #! | | ? #????#######+######## #????### ### %* | | ? #??????# w #??# #??????# ?# | | ########### #??# m #??????# ?## | | ? #### #???#### ?## | | k " ; #? ## ?# = | | ? ### #####g### ### | | ? u g g[g < "! | | ? ^ g%;## ### | | ? ^ =hg##?? ###????#"### | | ? !% u |% ;#?#???????????# #?? | | ? ####### %= @ #??????????????###?? | | ? #?????# k [%* %%= ! #??????????????????? | | ? #?????# [= u!%*=%= #??????????????????? | | ? #?????#### ;# ### =;###??????????????????? | | ? #????????# ; ????????????????????? | | ? #????????######### # #####???????????????????? | | ? #????????????????##?#????????????????????????? | | ? #????????????????????????????????????????????? | | ? #????????????????????????????????????????????? | | ? #???????????????############?????????????????? | | ? #???????????????# """"""""" ?????????????????? | | ? ################# """"""""" ?????????????????? | | ? # """"""""" ?????????????????? | | ? # """"""""" ?????????????????? | | ? # """"""""" ?????????????????? | | ? """ """ """ # """"""""" ?????????????????? | | ? """ """ """ # ?????????????????? | | ? """ """ """ # ?????????????????? | | ? """ """ """ # ?????????????????? | | ?????????????????????????????????????????????????? | | ?????????????????????????????????????????????????? | | ?????????????????????????????????????????????????? | | ?????????????????????????????????????????????????? | | ?????????????????????????????????????????????????? | | ?????????????????????????????????????????????????? | +----------------------------------------------------+ Best States ------------- Heat Dissipation 59 Energy Generation 31 Energy Capacity 365 Matter Stores 450 Matter Capacity 450 Sight Range 20 Robot Scan Range 30 Terrain Scan Density 10 Corruption Prevention 12 Armor Coverage 225 Weapon Cycling 20 Evasion (%) 50 Targeting Accuracy 10 Recoil Reduction 3 Item Schematics ----------------- None Robot Schematics ------------------ None Fabricated ------------ A-15 Conveyor | x1 | -6/Factory | Preloaded Hyp. Gauss Cannon | x2 | -5/Factory | Preloaded Alien Tech Used ----------------- None Achievements -------------- None Challenges ------------ None Game ------ Seed InsulatedPortableCycler Manual? 0 Play Time 01:30:59 Cumulative 53.3 hours Start 2021.05.25 @ 00:26:00 End 2021.05.25 @ 15:25:29 Sessions 3 Manual Loads 0 Difficulty Rogue Special Mode None Game No. 75 Rogue 75 Adventurer 0 Explorer 0 Win Type - Total 1 Types 1/0/0/0/0/0/0/0/0 Lore% 51 Gallery% 51 Achievement% 39 Wizard Run 0 Options --------- ASCII 0 Keyboard 0 Movement Mouse Keybinds 0 Fullscreen 1 Font 14/Dina Map View 72x54 Tactical HUD 0 Map Filters NONE Filters NONE Steam 1 RUN: 1725ef61-8266-437a-b437-57f3b823c47b